fUSD/lending_fUSD_20250423
["ID","MTS","AMOUNT","RATE_DAILY","PERIOD"]
[358706841,1745397051053,-840.550709,0.00039,14]
[358706842,1745397051062,-840.550709,0.00039,14]
[358706843,1745397051071,-151.0,0.00039,14]
[358706844,1745397051081,-151.0,0.00039,14]
[358706845,1745397051091,-152.704056,0.00039,14]
[358706846,1745397051101,-152.704056,0.00039,14]
[358706847,1745397051111,-151.0,0.00039,14]
[358706848,1745397051122,-185.809348,0.00039,14]
[358706849,1745397051131,-185.809348,0.00039,14]
[358706850,1745397051141,-154.586906,0.00039,14]
[358706851,1745397051151,-151.0,0.00039,14]
[358706852,1745397051160,-151.0,0.00039,14]
[358706853,1745397051170,-151.0,0.00039,14]
[358706854,1745397051179,-203.081804,0.00039,14]
[358706855,1745397051190,-203.081804,0.00039,14]
[358706856,1745397051200,-151.0,0.00039,14]
[358706857,1745397051209,-3737.051218,0.00039,14]
[358706858,1745397051218,-220.921621,0.00039,14]
[358706859,1745397051228,-220.921621,0.00039,14]
[358706860,1745397051237,-157.455282,0.00039,14]
[358706861,1745397051247,-157.455282,0.00039,14]
[358706862,1745397051256,-151.0,0.00039,14]
[358706863,1745397051265,-1802.470781,0.00039,14]
[358706864,1745397051275,-1802.470781,0.00039,14]
[358706865,1745397051286,-1502.199312,0.00039,14]
[358706866,1745397051295,-1502.199312,0.00039,14]
[358706867,1745397051305,-472.82254,0.00039,2]
[358706868,1745397051314,-151.0,0.00039,14]
[358706869,1745397051323,-472.82254,0.00039,2]
[358706870,1745397051333,-190.265889,0.00039,14]
[358706871,1745397051342,-190.265889,0.00039,14]
[358706872,1745397051351,-151.0,0.00039,14]
[358706873,1745397051360,-2562.339587,0.00039,14]
[358706874,1745397051369,-412.241262,0.00039,14]
[358706875,1745397051379,-412.241261,0.00039,14]
[358706876,1745397051388,-151.0,0.00039,14]
[358706877,1745397051398,-587.736157,0.00039,14]
[358706878,1745397051407,-587.736158,0.00039,14]
[358706879,1745397051417,-830.993183,0.00039,14]
[358706880,1745397051426,-830.993189,0.00039,14]
[358706881,1745397051435,-700.0,0.00039,2]
[358706882,1745397051445,-240.140931,0.00039,14]
[358706883,1745397051454,-702.083466,0.00039,14]
[358706884,1745397051464,-269.553122,0.00039,14]
[358706885,1745397051473,-240.140922,0.00039,14]
[358706886,1745397051483,-702.083475,0.00039,14]
[358706887,1745397051492,-269.553118,0.00039,14]
[358706888,1745397051501,-200.372614,0.00039,14]
[358706889,1745397051510,-150.0,0.00039263,7]
[358706890,1745397051519,-4040.01405914,0.00039419,2]
[358706891,1745397051529,-2394.1221053,0.00039544,2]
[358706892,1745397051538,-796.0,0.00039571,2]
[358706893,1745397051547,-1444.0,0.00039571,2]
[358706894,1745397051556,-1285.0,0.00039571,2]
[358706895,1745397051566,-500.91,0.00039571,2]
[358706896,1745397051575,-3964.664,0.00039571,2]
[358706897,1745397051584,-1132.0,0.00039571,2]
[358706898,1745397051594,-906.993,0.00039571,2]
[358706899,1745397051603,-2145.0,0.00039571,2]
[358706900,1745397051612,-6418.44360545,0.00039659,15]
[358706901,1745397051621,-5014.4091822,0.00039672,2]
[358706902,1745397051631,-742.5575816,0.00039699,2]
[358706903,1745397051640,-55843.1493967,0.00039699,2]
[358706904,1745397051649,-360.55680949,0.00039726,15]
[358706905,1745397051659,-500.0,0.00039726,15]
[358706906,1745397051668,-500.0,0.00039726,15]
[358706907,1745397051678,-500.0,0.00039726,15]
[358706908,1745397051687,-500.0,0.00039726,15]
[358706909,1745397051696,-500.0,0.00039726,15]
[358706910,1745397051706,-500.0,0.00039726,15]
[358706911,1745397051715,-500.0,0.00039726,15]
[358706912,1745397051725,-500.0,0.00039726,15]
[358706913,1745397051734,-500.0,0.00039726,15]
[358706914,1745397051744,-500.0,0.00039726,15]
[358706915,1745397051753,-500.0,0.00039726,15]
[358706916,1745397051762,-500.0,0.00039726,15]
[358706917,1745397051771,-500.0,0.00039726,15]
[358706918,1745397051781,-500.0,0.00039726,15]
[358706919,1745397051790,-500.0,0.00039726,15]
[358706920,1745397051799,-500.0,0.00039726,15]
[358706921,1745397051808,-500.0,0.00039726,15]
[358706922,1745397051817,-500.0,0.00039726,15]
[358706923,1745397051826,-500.0,0.00039726,15]
[358706924,1745397051835,-500.0,0.00039726,15]
[358706925,1745397051844,-500.0,0.00039726,15]
[358706926,1745397051853,-500.0,0.00039726,15]
[358706927,1745397051862,-500.0,0.00039726,15]
[358706928,1745397051871,-500.0,0.00039726,15]
[358706929,1745397051880,-323.44846247,0.00039726,15]
[358706930,1745397051889,-500.0,0.00039726,15]
[358706931,1745397051898,-500.0,0.00039726,15]
[358706932,1745397051908,-500.0,0.00039726,15]
[358706933,1745397051917,-500.0,0.00039726,15]
[358706934,1745397051926,-500.0,0.00039726,15]
[358706935,1745397051936,-500.0,0.00039726,15]
[358706936,1745397051947,-500.0,0.00039726,15]
[358706937,1745397051956,-500.0,0.00039726,15]
[358706938,1745397051966,-500.0,0.00039726,15]
[358706939,1745397051977,-500.0,0.00039726,15]
[358706940,1745397051986,-500.0,0.00039726,15]
[358706941,1745397051995,-500.0,0.00039726,15]
[358706942,1745397052004,-151.0,0.00039999,2]
[358706943,1745397052014,-8965.00793585,0.00039999,7]
[358706944,1745397052023,-50000.0,0.0004,2]
[358706945,1745397052033,-4835.49361546,0.0004,10]
[358706946,1745397052043,-1235.76222445,0.0004,10]
[358706947,1745397052052,-1539.91019181,0.0004,15]
[358706948,1745397052061,-163.22183248,0.0004,14]
[358706949,1745397052071,-500.0,0.0004,2]
[358706950,1745397052081,-932.30454894,0.0004,5]
[358706951,1745397052091,-510.65,0.0004,5]
[358706952,1745397052100,-40000.0,0.0004,15]
[358706953,1745397052113,-160.0,0.00040274,14]
[358706954,1745397052122,-2695.0,0.00040351,2]
[358706955,1745397052132,-1469.6,0.00040668,2]
[358706956,1745397052142,-152.0,0.00040673,3]
[358706957,1745397052153,-6418.44360545,0.00040831,16]
[358706958,1745397052162,-173.77,0.00040888,7]
[358706959,1745397052171,-50000.0,0.00041,2]
[358706960,1745397052181,-22146.0,0.00041,5]
[358706961,1745397052191,-183.0,0.00041,14]
[358706962,1745397052200,-750.0,0.00041,2]
[358706963,1745397052210,-151.0,0.00041095,14]
[358706964,1745397052219,-151.0,0.00041095,14]
[358706965,1745397052228,-316.675447,0.00041095,14]
[358706966,1745397052238,-181.360655,0.00041095,14]
[358706967,1745397052247,-874.166081,0.00041095,14]
[358706968,1745397052256,-874.166081,0.00041095,14]
[358706969,1745397052265,-151.0,0.00041095,14]
[358706970,1745397052274,-151.0,0.00041095,14]
[358706971,1745397052283,-151.0,0.00041095,14]
[358706972,1745397052293,-909.565525,0.00041095,14]
[358706973,1745397052303,-909.565525,0.00041095,14]
[358706974,1745397052313,-151.0,0.00041095,14]
[358706975,1745397052323,-840.550709,0.00041095,14]
[358706976,1745397052332,-840.550709,0.00041095,14]
[358706977,1745397052341,-151.0,0.00041095,14]
[358706978,1745397052351,-151.0,0.00041095,14]
[358706979,1745397052361,-152.704056,0.00041095,14]
[358706980,1745397052371,-152.704056,0.00041095,14]
[358706981,1745397052381,-292.381187,0.00041095,14]
[358706982,1745397052391,-185.809348,0.00041095,14]
[358706983,1745397052400,-185.809348,0.00041095,14]
[358706984,1745397052410,-151.0,0.00041095,14]
[358706985,1745397052419,-151.0,0.00041095,14]
[358706986,1745397052430,-151.0,0.00041095,14]
[358706987,1745397052440,-203.081804,0.00041095,14]
[358706988,1745397052449,-203.081797,0.00041095,14]
[358706989,1745397052459,-151.0,0.00041095,14]
[358706990,1745397052468,-3737.051222,0.00041095,14]
[358706991,1745397052478,-220.921621,0.00041095,14]
[358706992,1745397052487,-220.921619,0.00041095,14]
[358706993,1745397052497,-157.455282,0.00041095,14]
[358706994,1745397052507,-157.455279,0.00041095,14]
[358706995,1745397052516,-151.0,0.00041095,14]
[358706996,1745397052526,-1802.470781,0.00041095,14]
[358706997,1745397052535,-1802.470778,0.00041095,14]
[358706998,1745397052546,-1502.199312,0.00041095,14]
[358706999,1745397052556,-1502.199309,0.00041095,14]
[358707000,1745397052565,-164.61351,0.00041095,14]
[358707001,1745397052575,-472.82254,0.00041095,2]
[358707002,1745397052585,-472.822534,0.00041095,2]
[358707003,1745397052595,-190.265889,0.00041095,14]
[358707004,1745397052605,-190.265882,0.00041095,14]
[358707005,1745397052616,-151.0,0.00041095,14]
[358707006,1745397052625,-2562.339586,0.00041095,14]
[358707007,1745397052635,-2000.0,0.00041095,2]
[358707008,1745397052645,-2000.0,0.00041095,2]
[358707009,1745397052655,-2000.0,0.00041095,2]
[358707010,1745397052665,-2000.0,0.00041095,2]
[358707011,1745397052675,-2000.0,0.00041095,2]
[358707012,1745397052685,-2000.0,0.00041095,2]
[358707013,1745397052694,-2000.0,0.00041095,2]
[358707014,1745397052704,-2000.0,0.00041095,2]
[358707015,1745397052714,-2000.0,0.00041095,2]
[358707016,1745397052724,-2000.0,0.00041095,2]
[358707017,1745397052735,-2000.0,0.00041095,2]
[358707018,1745397052744,-2000.0,0.00041095,2]
[358707019,1745397052754,-500.0,0.00041096,10]
[358707020,1745397052766,-153.67,0.00041096,2]
[358707021,1745397052776,-1000.0,0.00041096,30]
[358707022,1745397052786,-263.51781613,0.00041096,10]
[358707023,1745397052797,-150.0,0.00041096,2]
[358707024,1745397052806,-158.85871913,0.0004137,2]
[358707025,1745397052816,-1000.0,0.00041644,10]
[358707026,1745397052826,-50000.0,0.00042,2]
[358707027,1745397052836,-321.0,0.00042,120]
[358707028,1745397052847,-1076.7,0.00042,2]
[358707029,1745397052857,-6418.44360545,0.00042003,16]
[358707030,1745397052867,-201.05902538,0.0004203,14]
[358707031,1745397052877,-311.97860147,0.00042192,10]
[358707032,1745397052887,-160.0,0.00042288,90]
[358707033,1745397052897,-1132.0,0.00042571,2]
[358707034,1745397052906,-2061.46,0.000427,14]
[358707035,1745397052917,-217.0,0.0004292,2]
[358707036,1745397052927,-1469.6,0.00042932,2]
[358707037,1745397052937,-50000.0,0.00043,2]
[358707038,1745397052947,-535.10739896,0.00043,3]
[358707039,1745397052957,-800.0,0.00043,2]
[358707040,1745397052969,-6418.44360545,0.00043176,17]
[358707041,1745397052979,-300.63192806,0.00043201,2]
[358707042,1745397052989,-500.0,0.00043288,2]
[358707043,1745397052999,-1000.0,0.00043316,2]
[358707044,1745397053008,-152.0,0.00043393,4]
[358707045,1745397053018,-500.0,0.00043562,2]
[358707046,1745397053028,-200.0,0.000438,56]
[358707047,1745397053039,-765.0,0.000438,30]
[358707048,1745397053049,-500.0,0.00043835,2]
[358707049,1745397053059,-500.0,0.00043835,2]
[358707050,1745397053068,-500.0,0.00043835,2]
[358707051,1745397053079,-500.0,0.00043835,2]
[358707052,1745397053088,-500.0,0.00043835,2]
[358707053,1745397053099,-500.0,0.00043835,2]
[358707054,1745397053109,-544.86514967,0.00043835,2]
[358707055,1745397053121,-500.0,0.00043835,2]
[358707056,1745397053131,-500.0,0.00043835,2]
[358707057,1745397053141,-500.0,0.00043835,2]
[358707058,1745397053151,-500.0,0.00043835,2]
[358707059,1745397053162,-500.0,0.00043835,2]
[358707060,1745397053172,-500.0,0.00043835,2]
[358707061,1745397053182,-604.64465951,0.00043835,2]
[358707062,1745397053195,-500.0,0.00043835,2]
[358707063,1745397053206,-500.0,0.00043835,2]
[358707064,1745397053216,-500.0,0.00043835,2]
[358707065,1745397053226,-500.0,0.00043835,2]
[358707066,1745397053236,-500.0,0.00043835,2]
[358707067,1745397053245,-500.0,0.00043835,2]
[358707068,1745397053255,-500.0,0.00043835,2]
[358707069,1745397053265,-500.0,0.00043835,2]
[358707070,1745397053275,-500.0,0.00043835,2]
[358707071,1745397053286,-500.0,0.00043835,2]
[358707072,1745397053296,-500.0,0.00043835,2]
[358707073,1745397053306,-511.43147068,0.00043835,2]
[358707074,1745397053315,-500.0,0.00043835,2]
[358707075,1745397053325,-500.0,0.00043835,2]
[358707076,1745397053336,-500.0,0.00043835,2]
[358707077,1745397053346,-500.0,0.00043835,2]
[358707078,1745397053356,-500.0,0.00043835,2]
[358707079,1745397053366,-500.0,0.00043835,2]
[358707080,1745397053376,-500.0,0.00043835,2]
[358707081,1745397053387,-500.0,0.00043835,2]
[358707082,1745397053398,-500.0,0.00043835,2]
[358707083,1745397053408,-500.0,0.00043835,2]
[358707084,1745397053418,-500.0,0.00043835,2]
[358707085,1745397053429,-500.0,0.00043835,2]
[358707086,1745397053439,-500.0,0.00043835,2]
[358707087,1745397053449,-500.0,0.00043835,2]
[358707088,1745397053459,-500.0,0.00043835,2]
[358707089,1745397053469,-500.0,0.00043835,2]
[358707090,1745397053479,-500.0,0.00043835,2]
[358707091,1745397053490,-500.0,0.00043835,2]
[358707092,1745397053500,-500.0,0.00043835,2]
[358707093,1745397053510,-500.0,0.00043835,2]
[358707094,1745397053520,-500.0,0.00043835,2]
[358707095,1745397053530,-500.0,0.00043835,2]
[358707096,1745397053541,-500.0,0.00043835,2]
[358707097,1745397053551,-500.0,0.00043835,2]
[358707098,1745397053562,-500.0,0.00043835,2]
[358707099,1745397053573,-500.0,0.00043835,2]
[358707100,1745397053583,-500.0,0.00043835,2]
[358707101,1745397053592,-583.33432023,0.00043835,2]
[358707102,1745397053602,-151.0,0.00043835,14]
[358707103,1745397053611,-3500.0,0.00043835,10]
[358707104,1745397053621,-3500.0,0.00043835,10]
[358707105,1745397053631,-3500.0,0.00043835,10]
[358707106,1745397053642,-3500.0,0.00043835,10]
[358707107,1745397053651,-3500.0,0.00043835,10]
[358707108,1745397053661,-3500.0,0.00043835,10]
[358707109,1745397053671,-3500.0,0.00043835,10]
[358707110,1745397053681,-3500.0,0.00043835,10]
[358707111,1745397053692,-3500.0,0.00043835,10]
[358707112,1745397053701,-1463.17525658,0.00043835,10]
[358707113,1745397053712,-2000.0,0.00043835,2]
[358707114,1745397053721,-521.0027685,0.00043835,2]
[358707115,1745397053732,-151.0,0.00043836,14]
[358707116,1745397053742,-151.0,0.00043836,14]
[358707117,1745397053753,-151.0,0.00043836,14]
[358707118,1745397053763,-151.0,0.00043836,14]
[358707119,1745397053773,-151.0,0.00043836,14]
[358707120,1745397053784,-151.0,0.00043836,14]
[358707121,1745397053794,-295.900712,0.00043836,14]
[358707122,1745397053805,-153.67,0.00043836,2]
[358707123,1745397053815,-362.94644889,0.00043836,2]
[358707124,1745397053825,-10000.0,0.00043836,30]
[358707125,1745397053836,-5710.0,0.00043836,14]
[358707126,1745397053847,-150.0,0.00043836,10]
[358707127,1745397053858,-500.0,0.00043836,2]
[358707128,1745397053868,-500.0,0.00043836,2]
[358707129,1745397053879,-151.0,0.00043836,14]
[358707130,1745397053890,-288.539509,0.00043836,14]
[358707131,1745397053900,-316.675447,0.00043836,14]
[358707132,1745397053911,-181.360655,0.00043836,14]
[358707133,1745397053922,-874.166081,0.00043836,14]
[358707134,1745397053932,-874.166081,0.00043836,14]
[358707135,1745397053943,-151.0,0.00043836,14]
[358707136,1745397053953,-151.0,0.00043836,14]
[358707137,1745397053964,-151.0,0.00043836,14]
[358707138,1745397053976,-909.565525,0.00043836,14]
[358707139,1745397053986,-909.565525,0.00043836,14]
[358707140,1745397053998,-151.0,0.00043836,14]
[358707141,1745397054008,-840.550709,0.00043836,14]
[358707142,1745397054017,-840.550709,0.00043836,14]
[358707143,1745397054028,-151.0,0.00043836,14]
[358707144,1745397054039,-500.0,0.00043836,31]
[358707145,1745397054050,-500.0,0.00043836,31]
[358707146,1745397054061,-500.0,0.00043836,31]
[358707147,1745397054071,-500.0,0.00043836,31]
[358707148,1745397054081,-500.0,0.00043836,31]
[358707149,1745397054092,-500.0,0.00043836,31]
[358707150,1745397054102,-500.0,0.00043836,31]
[358707151,1745397054115,-500.0,0.00043836,31]
[358707152,1745397054125,-500.0,0.00043836,31]
[358707153,1745397054136,-500.0,0.00043836,31]
[358707154,1745397054146,-500.0,0.00043836,31]
[358707155,1745397054158,-500.0,0.00043836,31]
[358707156,1745397054168,-500.0,0.00043836,31]
[358707157,1745397054178,-500.0,0.00043836,31]
[358707158,1745397054188,-500.0,0.00043836,31]
[358707159,1745397054198,-500.0,0.00043836,31]
[358707160,1745397054207,-500.0,0.00043836,31]
[358707161,1745397054217,-500.0,0.00043836,31]
[358707162,1745397054227,-500.0,0.00043836,31]
[358707163,1745397054237,-500.0,0.00043836,31]
[358707164,1745397054247,-500.0,0.00043836,31]
[358707165,1745397054256,-500.0,0.00043836,31]
[358707166,1745397054267,-500.0,0.00043836,31]
[358707167,1745397054277,-500.0,0.00043836,31]
[358707168,1745397054288,-500.0,0.00043836,31]
[358707169,1745397054298,-500.0,0.00043836,31]
[358707170,1745397054308,-500.0,0.00043836,31]
[358707171,1745397054319,-500.0,0.00043836,31]
[358707172,1745397054329,-500.0,0.00043836,31]
[358707173,1745397054338,-500.0,0.00043836,31]
[358707174,1745397054349,-500.0,0.00043836,31]
[358707175,1745397054359,-500.0,0.00043836,31]
[358707176,1745397054369,-500.0,0.00043836,31]
[358707177,1745397054379,-500.0,0.00043836,31]
[358707178,1745397054389,-500.0,0.00043836,31]
[358707179,1745397054399,-500.0,0.00043836,31]
[358707180,1745397054409,-500.0,0.00043836,31]
[358707181,1745397054420,-500.0,0.00043836,31]
[358707182,1745397054430,-500.0,0.00043836,31]
[358707183,1745397054440,-500.0,0.00043836,31]
[358707184,1745397054451,-500.0,0.00043836,31]
[358707185,1745397054461,-500.0,0.00043836,31]
[358707186,1745397054472,-500.0,0.00043836,31]
[358707187,1745397054482,-500.0,0.00043836,31]
[358707188,1745397054492,-500.0,0.00043836,31]
[358707189,1745397054501,-500.0,0.00043836,31]
[358707190,1745397054511,-500.0,0.00043836,31]
[358707191,1745397054521,-500.0,0.00043836,31]
[358707192,1745397054531,-533.24480896,0.00043836,31]
[358707193,1745397054541,-500.0,0.00043836,31]
[358707194,1745397054552,-500.0,0.00043836,31]
[358707195,1745397054562,-500.0,0.00043836,31]
[358707196,1745397054572,-500.0,0.00043836,31]
[358707197,1745397054582,-1563.93,0.00043888,30]
[358707198,1745397054593,-217.0,0.0004394,30]
[358707199,1745397054603,-50000.0,0.00044,2]
[358707200,1745397054613,-500.0,0.0004411,2]
[358707201,1745397054623,-151.0,0.00044213,14]
[358707202,1745397054633,-2110.0,0.00044213,30]
[358707203,1745397054643,-2061.46,0.000443,14]
[358707204,1745397054653,-6418.44360545,0.00044348,18]
[358707205,1745397054663,-150.0,0.00044356,120]
[358707206,1745397054673,-152.0,0.00044384,10]
[358707207,1745397054683,-500.0,0.00044384,2]
[358707208,1745397054693,-500.0,0.00044384,2]
[358707209,1745397054703,-798.04,0.00044392,30]
[358707210,1745397054713,-2000.0,0.00044438,120]
[358707211,1745397054920,-150.042314,0.00044498,120]
[358707212,1745397054931,-500.0,0.00044499,2]
[358707213,1745397054941,-84066.43921979,0.000445,2]
[358707214,1745397054951,-151.0,0.000445,14]
[358707215,1745397054960,-151.0,0.000445,14]
[358707216,1745397054969,-152.704056,0.000445,14]
[358707217,1745397054979,-152.704056,0.000445,14]
[358707218,1745397054989,-185.809348,0.000445,14]
[358707219,1745397054999,-185.809348,0.000445,14]
[358707220,1745397055009,-151.0,0.000445,14]
[358707221,1745397055018,-217.185581,0.000445,14]
[358707222,1745397055028,-150.0,0.00044555,120]
[358707223,1745397055039,-150.042314,0.00044598,120]
[358707224,1745397055049,-500.0,0.00044658,2]
[358707225,1745397055058,-150.042314,0.00044698,120]
[358707226,1745397055068,-2110.0,0.00044713,30]
[358707227,1745397055078,-151.042314,0.00044798,120]
[358707228,1745397055087,-200.0,0.000448,60]
[358707229,1745397055097,-333.406799,0.000448,27]
[358707230,1745397055108,-151.0,0.000449,2]
[358707231,1745397055120,-237.66431186,0.00044901,2]
[358707232,1745397055131,-240.72573994,0.00044901,2]
[358707233,1745397055141,-162.14852692,0.00044932,10]
[358707234,1745397055151,-500.0,0.00044932,2]
[358707235,1745397055162,-217.0,0.0004495,30]
[358707236,1745397055171,-200.0,0.00044979,2]
[358707237,1745397055181,-2000.0,0.00044999,2]
[358707238,1745397055193,-50000.0,0.00045,2]
[358707239,1745397055203,-13164.00465224,0.00045,2]
[358707240,1745397055213,-500.0,0.00045,4]
[358707241,1745397055223,-500.0,0.00045,5]
[358707242,1745397055232,-504.41739232,0.00045,6]
[358707243,1745397055242,-151.0,0.00045,120]
[358707244,1745397055252,-3972.02571132,0.00045,4]
[358707245,1745397055262,-1390.58,0.00045,5]
[358707246,1745397055273,-6400.0,0.00045,3]
[358707247,1745397055282,-29199.71005411,0.00045,7]
[358707248,1745397055291,-524.02988441,0.00045,4]
[358707249,1745397055301,-151.0,0.00045,14]
[358707250,1745397055311,-814.0,0.00045,15]
[358707251,1745397055320,-151.0,0.00045,14]
[358707252,1745397055329,-181.360655,0.00045,14]
[358707253,1745397055338,-874.166081,0.00045,14]
[358707254,1745397055347,-874.166081,0.00045,14]
[358707255,1745397055357,-182.237089,0.00045,14]
[358707256,1745397055367,-150.0,0.00045,85]
[358707257,1745397055376,-151.0,0.00045,14]
[358707258,1745397055385,-909.565525,0.00045,14]
[358707259,1745397055395,-909.565525,0.00045,14]
[358707260,1745397055405,-151.0,0.00045,14]
[358707261,1745397055414,-840.550709,0.00045,14]
[358707262,1745397055423,-840.550709,0.00045,14]
[358707263,1745397055433,-850.0,0.00045,2]
[358707264,1745397055443,-1076.7,0.00045,2]
[358707265,1745397055452,-23593.22995946,0.00045,30]
[358707266,1745397055462,-1469.6,0.00045196,2]
[358707267,1745397055472,-27999.27995052,0.000452,2]
[358707268,1745397055481,-316.675442,0.000452,14]
[358707269,1745397055492,-151.0,0.000452,14]
[358707270,1745397055502,-240.836657,0.000452,14]
[358707271,1745397055511,-215.14,0.00045205,30]
[358707272,1745397055521,-500.0,0.00045205,30]
[358707273,1745397055532,-500.0,0.00045205,30]
[358707274,1745397055542,-500.0,0.00045205,30]
[358707275,1745397055552,-500.0,0.00045205,30]
[358707276,1745397055561,-500.0,0.00045205,30]
[358707277,1745397055571,-500.0,0.00045205,30]
[358707278,1745397055580,-500.0,0.00045205,30]
[358707279,1745397055590,-500.0,0.00045205,30]
[358707280,1745397055600,-500.0,0.00045205,30]
[358707281,1745397055609,-153.42000146,0.00045205,30]
[358707282,1745397055619,-1000.35,0.00045205,120]
[358707283,1745397055629,-151.0,0.00045205,14]
[358707284,1745397055639,-151.0,0.00045205,14]
[358707285,1745397055649,-151.0,0.00045205,14]
[358707286,1745397055659,-151.0,0.00045205,14]
[358707287,1745397055669,-151.0,0.00045205,14]
[358707288,1745397055678,-151.0,0.00045205,14]
[358707289,1745397055688,-151.0,0.00045205,14]
[358707290,1745397055697,-151.0,0.00045205,14]
[358707291,1745397055707,-151.0,0.00045205,14]
[358707292,1745397055717,-151.0,0.00045205,14]
[358707293,1745397055727,-151.0,0.00045205,14]
[358707294,1745397055737,-151.0,0.00045205,14]
[358707295,1745397055748,-151.0,0.00045205,14]
[358707296,1745397055758,-151.0,0.00045205,14]
[358707297,1745397055768,-151.0,0.00045205,14]
[358707298,1745397055778,-151.0,0.00045205,14]
[358707299,1745397055788,-151.0,0.00045205,14]
[358707300,1745397055798,-291.850121,0.00045205,14]
[358707301,1745397055807,-2110.0,0.00045213,30]
[358707302,1745397055817,-500.0,0.00045227,120]
[358707303,1745397055827,-2000.0,0.00045227,120]
[358707304,1745397055837,-500.0,0.00045227,120]
[358707305,1745397055847,-500.0,0.00045227,120]
[358707306,1745397055856,-200.0,0.00045227,120]
[358707307,1745397055867,-2061.46,0.000453,14]
[358707308,1745397055877,-180.54,0.000453,2]
[358707309,1745397055887,-151.0,0.000453,14]
[358707310,1745397055896,-500.0,0.0004548,2]
[358707311,1745397055907,-500.0,0.000455,60]
[358707312,1745397055916,-800.0,0.000455,120]
[358707313,1745397055926,-500.0,0.00045502,2]
[358707314,1745397055935,-6418.44360545,0.00045521,19]
[358707315,1745397055945,-42581.78901203,0.0004557,7]
[358707316,1745397055955,-151.0,0.0004557,14]
[358707317,1745397055965,-479.57,0.00045571,2]
[358707318,1745397055974,-399.87619122,0.00045616,30]
[358707319,1745397055984,-3012.4,0.00045679,7]
[358707320,1745397055994,-2097.37565556,0.000457,17]
[358707321,1745397056004,-358.92,0.000457,2]
[358707322,1745397056014,-180.54,0.000457,2]
[358707323,1745397056023,-2110.0,0.00045713,30]
[358707324,1745397056034,-200.0,0.000458,64]
[358707325,1745397056044,-399.87619122,0.00045808,30]
[358707326,1745397056054,-151.0,0.00045969,14]
[358707327,1745397056063,-151.0,0.00045969,14]
[358707328,1745397056073,-152.704056,0.00045969,14]
[358707329,1745397056083,-152.704056,0.00045969,14]
[358707330,1745397056092,-185.809348,0.00045969,14]
[358707331,1745397056103,-185.809348,0.00045969,14]
[358707332,1745397056115,-151.0,0.00045969,14]
[358707333,1745397056128,-217.0,0.0004597,30]
[358707334,1745397056137,-399.87619122,0.00045973,30]
[358707335,1745397056147,-39507.55,0.00045999,2]
[358707336,1745397056158,-500.0,0.00045999,2]
[358707337,1745397056167,-2000.0,0.00045999,2]
[358707338,1745397056177,-50000.0,0.00046,2]
[358707339,1745397056187,-451.89,0.00046,120]
[358707340,1745397056198,-18685.93683069,0.00046,2]